[Event "Titled Tuesday Blitz June 21 Late 2022"]
[White "Vu, Bui Thi Thanh Van"]
[Black "Koutlas, Nikolaos"]
[WhiteFideId "12408921"]
[BlackFideId "25827138"]
[WhiteElo "1602"]
[BlackElo "1738"]
[Result "1-0"]
[Round "02"]
[TimeControl "180+1"]
[Date "2022.06.22"]
[WhiteClock "0:00:14"]
[BlackClock "0:01:10"]

1. d4 {[%clk 0:02:43]}  d6 {[%clk 0:02:58]} 2. Nf3 {[%clk 0:02:42]}  g6 {[%clk 0:02:59]} 3. e4 {[%clk 0:02:36]}  Bg7 {[%clk 0:02:58]} 4. Bd3 {[%clk 0:02:37]}  e5 {[%clk 0:02:56]} 5. c3 {[%clk 0:02:36]}  Ne7 {[%clk 0:02:56]} 6. O-O {[%clk 0:02:35]}  O-O {[%clk 0:02:56]} 7. Re1 {[%clk 0:02:30]}  Nbc6 {[%clk 0:02:56]} 8. d5 {[%clk 0:02:27]}  Nb8 {[%clk 0:02:48]} 9. c4 {[%clk 0:02:27]}  a5 {[%clk 0:02:44]} 10. b3 {[%clk 0:02:24]}  Na6 {[%clk 0:02:41]} 11. a3 {[%clk 0:02:22]}  f5 {[%clk 0:02:41]} 12. Bd2 {[%clk 0:02:16]}  Nc5 {[%clk 0:02:41]} 13. Bc2 {[%clk 0:02:13]}  fxe4 {[%clk 0:02:37]} 14. Ng5 {[%clk 0:02:13]}  Bf5 {[%clk 0:02:35]} 15. Nc3 {[%clk 0:02:11]}  Nd3 {[%clk 0:02:30]} 16. Rf1 {[%clk 0:01:39]}  c6 {[%clk 0:02:17]} 17. Ncxe4 {[%clk 0:01:25]}  cxd5 {[%clk 0:02:14]} 18. Bxd3 {[%clk 0:01:19]}  dxe4 {[%clk 0:02:13]} 19. Bxe4 {[%clk 0:01:19]}  Qd7 {[%clk 0:02:07]} 20. Bc3 {[%clk 0:01:14]}  h6 {[%clk 0:02:04]} 21. Bxf5 {[%clk 0:01:08]}  Qxf5 {[%clk 0:02:00]} 22. Nf3 {[%clk 0:01:09]}  Rfd8 {[%clk 0:01:50]} 23. Qe2 {[%clk 0:01:06]}  Rd7 {[%clk 0:01:47]} 24. Rad1 {[%clk 0:01:02]}  Nc6 {[%clk 0:01:47]} 25. Rd5 {[%clk 0:00:57]}  Ne7 {[%clk 0:01:44]} 26. Rd2 {[%clk 0:00:57]}  e4 {[%clk 0:01:36]} 27. Nd4 {[%clk 0:00:50]}  Qg5 {[%clk 0:01:34]} 28. Ne6 {[%clk 0:00:47]}  Bxc3 {[%clk 0:01:31]} 29. Nxg5 {[%clk 0:00:47]}  Bxd2 {[%clk 0:01:32]} 30. Qxd2 {[%clk 0:00:47]}  hxg5 {[%clk 0:01:33]} 31. Qxg5 {[%clk 0:00:48]}  Kf7 {[%clk 0:01:33]} 32. f3 {[%clk 0:00:47]}  e3 {[%clk 0:01:33]} 33. Qxe3 {[%clk 0:00:46]}  Nf5 {[%clk 0:01:34]} 34. Qe4 {[%clk 0:00:45]}  Kg7 {[%clk 0:01:35]} 35. Rd1 {[%clk 0:00:43]}  Re7 {[%clk 0:01:35]} 36. Qd3 {[%clk 0:00:40]}  Rae8 {[%clk 0:01:36]} 37. g4 {[%clk 0:00:38]}  Nh4 {[%clk 0:01:34]} 38. Qd4+ {[%clk 0:00:32]}  Kh7 {[%clk 0:01:34]} 39. Qf6 {[%clk 0:00:21]}  g5 {[%clk 0:01:30]} 40. Rxd6 {[%clk 0:00:14]}  Re1+ {[%clk 0:01:30]} 41. Kf2 {[%clk 0:00:14]}  R8e2+ {[%clk 0:01:30]} 42. Kg3 {[%clk 0:00:15]}  Rg2+ {[%clk 0:01:10]} 43. Kh3 {[%clk 0:00:15]}  Rg3+ {[%clk 0:01:11]} 44. Kxg3 {[%clk 0:00:15]}  Rg1+ {[%clk 0:01:11]} 45. Kh3 {[%clk 0:00:14]}  Rg3+ {[%clk 0:01:10]} 46. Kxg3 {[%clk 0:00:14]} 1-0


[Site "https://www.chess.com"]

[Event "Titled Tuesday Blitz June 21 Late 2022"]
[White "Weisz, Bryan"]
[Black "Fiol, Fabrice"]
[WhiteFideId "30934133"]
[BlackFideId "611670"]
[WhiteElo "2233"]
[BlackElo "2481"]
[Result "1-0"]
[Round "02"]
[TimeControl "180+1"]
[Date "2022.06.22"]
[WhiteClock "0:02:24"]
[BlackClock "0:01:29"]

1. e4 {[%clk 0:03:00]}  c5 {[%clk 0:02:59]} 2. Nf3 {[%clk 0:02:59]}  e6 {[%clk 0:03:00]} 3. d4 {[%clk 0:02:59]}  cxd4 {[%clk 0:02:58]} 4. Nxd4 {[%clk 0:03:00]}  a6 {[%clk 0:02:59]} 5. Bd3 {[%clk 0:02:59]}  Nc6 {[%clk 0:02:58]} 6. Nxc6 {[%clk 0:02:59]}  dxc6 {[%clk 0:02:59]} 7. O-O {[%clk 0:02:59]}  e5 {[%clk 0:02:59]} 8. Nd2 {[%clk 0:02:58]}  Nf6 {[%clk 0:02:58]} 9. Nc4 {[%clk 0:02:58]}  Qc7 {[%clk 0:02:58]} 10. Bg5 {[%clk 0:02:58]}  Be6 {[%clk 0:02:49]} 11. f4 {[%clk 0:02:58]}  Bc5+ {[%clk 0:02:41]} 12. Kh1 {[%clk 0:02:58]}  Ng4 {[%clk 0:02:33]} 13. f5 {[%clk 0:02:47]}  Bxc4 {[%clk 0:02:30]} 14. Qxg4 {[%clk 0:02:43]}  Bxd3 {[%clk 0:02:26]} 15. cxd3 {[%clk 0:02:43]}  f6 {[%clk 0:02:25]} 16. Bh4 {[%clk 0:02:40]}  O-O-O {[%clk 0:02:21]} 17. Rfc1 {[%clk 0:02:37]}  Be3 {[%clk 0:02:16]} 18. Qe2 {[%clk 0:02:37]}  Bxc1 {[%clk 0:02:15]} 19. Rxc1 {[%clk 0:02:38]}  Qa5 {[%clk 0:02:07]} 20. b4 {[%clk 0:02:33]}  Qb5 {[%clk 0:02:05]} 21. Rc4 {[%clk 0:02:31]}  Rd7 {[%clk 0:02:01]} 22. Qc2 {[%clk 0:02:31]}  Rhd8 {[%clk 0:01:59]} 23. a4 {[%clk 0:02:31]}  Rd4 {[%clk 0:01:33]} 24. axb5 {[%clk 0:02:30]}  Rxd3 {[%clk 0:01:29]} 25. h3 {[%clk 0:02:24]} 1-0


[Site "https://www.chess.com"]

[Event "Titled Tuesday Blitz June 21 Late 2022"]
[White "Yedidia, Daniel"]
[Black "Urbina Perez, Juan Antonio"]
[WhiteFideId "30905907"]
[BlackFideId "2217368"]
[WhiteElo "2602"]
[BlackElo "2192"]
[Result "0-1"]
[Round "02"]
[TimeControl "180+1"]
[Date "2022.06.22"]
[WhiteClock "0:00:05"]
[BlackClock "0:00:53"]

1. d4 {[%clk 0:03:00]}  d5 {[%clk 0:02:59]} 2. c4 {[%clk 0:03:01]}  c6 {[%clk 0:02:59]} 3. Nf3 {[%clk 0:03:01]}  Nf6 {[%clk 0:03:00]} 4. Nc3 {[%clk 0:03:02]}  a6 {[%clk 0:03:00]} 5. e3 {[%clk 0:03:02]}  Bf5 {[%clk 0:02:59]} 6. Be2 {[%clk 0:02:57]}  e6 {[%clk 0:02:58]} 7. O-O {[%clk 0:02:57]}  h6 {[%clk 0:02:58]} 8. c5 {[%clk 0:02:57]}  Be7 {[%clk 0:02:55]} 9. b4 {[%clk 0:02:57]}  O-O {[%clk 0:02:54]} 10. a4 {[%clk 0:02:58]}  Nbd7 {[%clk 0:02:54]} 11. Bb2 {[%clk 0:02:54]}  Qc7 {[%clk 0:02:54]} 12. h3 {[%clk 0:02:53]}  Rfe8 {[%clk 0:02:51]} 13. b5 {[%clk 0:02:53]}  axb5 {[%clk 0:02:50]} 14. axb5 {[%clk 0:02:53]}  Ne4 {[%clk 0:02:49]} 15. Nxe4 {[%clk 0:02:48]}  Bxe4 {[%clk 0:02:50]} 16. b6 {[%clk 0:02:46]}  Qb8 {[%clk 0:02:48]} 17. Qb3 {[%clk 0:02:42]}  Rxa1 {[%clk 0:02:45]} 18. Rxa1 {[%clk 0:02:42]}  Bf6 {[%clk 0:02:43]} 19. Ra7 {[%clk 0:02:31]}  e5 {[%clk 0:02:42]} 20. Nd2 {[%clk 0:02:19]}  exd4 {[%clk 0:02:36]} 21. exd4 {[%clk 0:02:17]}  Bxg2 {[%clk 0:02:25]} 22. Bg4 {[%clk 0:02:14]}  Bxh3 {[%clk 0:01:48]} 23. Bxh3 {[%clk 0:02:10]}  Qf4 {[%clk 0:01:46]} 24. Bxd7 {[%clk 0:01:54]}  Re1+ {[%clk 0:01:32]} 25. Nf1 {[%clk 0:01:45]}  Bh4 {[%clk 0:01:32]} 26. Ra8+ {[%clk 0:01:23]}  Kh7 {[%clk 0:01:30]} 27. Qc2+ {[%clk 0:01:23]}  g6 {[%clk 0:01:30]} 28. Bh3 {[%clk 0:01:16]}  Qg5+ {[%clk 0:01:18]} 29. Bg2 {[%clk 0:01:15]}  Qg4 {[%clk 0:01:19]} 30. f3 {[%clk 0:00:27]}  Qe6 {[%clk 0:01:18]} 31. Bc3 {[%clk 0:00:16]}  Re2 {[%clk 0:01:15]} 32. Qd3 {[%clk 0:00:16]}  Bf2+ {[%clk 0:01:12]} 33. Kh1 {[%clk 0:00:08]}  Qe7 {[%clk 0:01:02]} 34. Ra1 {[%clk 0:00:05]}  Qh4+ {[%clk 0:00:56]} 35. Nh2 {[%clk 0:00:05]}  Bg3 {[%clk 0:00:54]} 36. Kg1 {[%clk 0:00:04]}  Qxh2+ {[%clk 0:00:53]} 37. Kf1 {[%clk 0:00:05]}  Qxg2# {[%clk 0:00:53]} 0-1


[Site "https://www.chess.com"]

[Event "Titled Tuesday Blitz June 21 Late 2022"]
[White "Yoo, Christopher Woojin"]
[Black "Saveliev, Alexei"]
[WhiteFideId "30909694"]
[BlackFideId "24128546"]
[WhiteElo "2105"]
[BlackElo "2281"]
[Result "1-0"]
[Round "02"]
[TimeControl "180+1"]
[Date "2022.06.21"]
[WhiteClock "0:00:07"]
[BlackClock "0:00:04"]

1. e4 {[%clk 0:03:00]}  g6 {[%clk 0:02:59]} 2. d4 {[%clk 0:02:58]}  Bg7 {[%clk 0:02:59]} 3. c3 {[%clk 0:02:55]}  d6 {[%clk 0:03:00]} 4. Bd3 {[%clk 0:02:55]}  Nc6 {[%clk 0:03:00]} 5. Nf3 {[%clk 0:02:55]}  e5 {[%clk 0:03:01]} 6. dxe5 {[%clk 0:02:54]}  Nxe5 {[%clk 0:03:01]} 7. Nxe5 {[%clk 0:02:55]}  dxe5 {[%clk 0:03:01]} 8. O-O {[%clk 0:02:55]}  Nf6 {[%clk 0:02:58]} 9. Bg5 {[%clk 0:02:55]}  O-O {[%clk 0:02:58]} 10. Qe2 {[%clk 0:02:55]}  h6 {[%clk 0:02:55]} 11. Bh4 {[%clk 0:02:55]}  c6 {[%clk 0:02:50]} 12. Nd2 {[%clk 0:02:54]}  Qc7 {[%clk 0:02:48]} 13. Rfd1 {[%clk 0:02:34]}  Be6 {[%clk 0:02:42]} 14. Bc4 {[%clk 0:02:33]}  Bxc4 {[%clk 0:02:33]} 15. Nxc4 {[%clk 0:02:32]}  Nh5 {[%clk 0:02:32]} 16. Qg4 {[%clk 0:02:15]}  b5 {[%clk 0:01:37]} 17. Rd7 {[%clk 0:02:09]}  Qc8 {[%clk 0:01:29]} 18. Nd6 {[%clk 0:02:08]}  f5 {[%clk 0:01:18]} 19. Nxc8 {[%clk 0:02:00]}  fxg4 {[%clk 0:01:18]} 20. Ne7+ {[%clk 0:02:01]}  Kh7 {[%clk 0:01:16]} 21. Nxc6 {[%clk 0:02:01]}  a6 {[%clk 0:01:00]} 22. Nxe5 {[%clk 0:01:53]}  Rae8 {[%clk 0:00:47]} 23. Nxg4 {[%clk 0:01:18]}  Rxe4 {[%clk 0:00:47]} 24. h3 {[%clk 0:01:14]}  g5 {[%clk 0:00:38]} 25. Bg3 {[%clk 0:01:13]}  Nxg3 {[%clk 0:00:38]} 26. fxg3 {[%clk 0:01:14]}  Re2 {[%clk 0:00:39]} 27. Rf1 {[%clk 0:00:41]}  Rxf1+ {[%clk 0:00:37]} 28. Kxf1 {[%clk 0:00:42]}  Rxb2 {[%clk 0:00:38]} 29. Ne3 {[%clk 0:00:43]}  Kg8 {[%clk 0:00:31]} 30. Nf5 {[%clk 0:00:25]}  Bxc3 {[%clk 0:00:30]} 31. Nxh6+ {[%clk 0:00:25]}  Kf8 {[%clk 0:00:30]} 32. a3 {[%clk 0:00:17]}  a5 {[%clk 0:00:29]} 33. Nf7 {[%clk 0:00:14]}  b4 {[%clk 0:00:23]} 34. axb4 {[%clk 0:00:14]}  a4 {[%clk 0:00:19]} 35. Ra7 {[%clk 0:00:13]}  Rxb4 {[%clk 0:00:20]} 36. Nxg5 {[%clk 0:00:12]}  Bb2 {[%clk 0:00:18]} 37. Ne6+ {[%clk 0:00:10]}  Kg8 {[%clk 0:00:16]} 38. g4 {[%clk 0:00:08]}  a3 {[%clk 0:00:13]} 39. g5 {[%clk 0:00:09]}  Re4 {[%clk 0:00:12]} 40. Nc5 {[%clk 0:00:09]}  Re5 {[%clk 0:00:11]} 41. Nd3 {[%clk 0:00:10]}  Rf5+ {[%clk 0:00:10]} 42. Ke2 {[%clk 0:00:07]}  Rxg5 {[%clk 0:00:11]} 43. Kf3 {[%clk 0:00:05]}  Rd5 {[%clk 0:00:10]} 44. Nxb2 {[%clk 0:00:05]}  axb2 {[%clk 0:00:08]} 45. Rb7 {[%clk 0:00:06]}  Rd2 {[%clk 0:00:08]} 46. g4 {[%clk 0:00:06]}  Rd3+ {[%clk 0:00:07]} 47. Kg2 {[%clk 0:00:06]}  Rd2+ {[%clk 0:00:08]} 48. Kg3 {[%clk 0:00:06]}  Kf8 {[%clk 0:00:08]} 49. g5 {[%clk 0:00:05]}  Ke8 {[%clk 0:00:04]} 50. h4 {[%clk 0:00:05]}  Kd8 {[%clk 0:00:04]} 51. Kg4 {[%clk 0:00:04]}  Kc8 {[%clk 0:00:03]} 52. Rb3 {[%clk 0:00:05]}  Kd7 {[%clk 0:00:04]} 53. g6 {[%clk 0:00:03]}  Ke6 {[%clk 0:00:04]} 54. Rb6+ {[%clk 0:00:04]}  Ke5 {[%clk 0:00:02]} 55. Kh5 {[%clk 0:00:04]}  Rg2 {[%clk 0:00:01]} 56. Kh6 {[%clk 0:00:04]}  Kf5 {[%clk 0:00:01]} 57. h5 {[%clk 0:00:04]}  Rg1 {[%clk 0:00:01]} 58. g7 {[%clk 0:00:04]}  Rg4 {[%clk 0:00:01]} 59. Rxb2 {[%clk 0:00:04]}  Ke5 {[%clk 0:00:02]} 60. Rb6 {[%clk 0:00:04]}  Kd5 {[%clk 0:00:02]} 61. Rg6 {[%clk 0:00:04]}  Rh4 {[%clk 0:00:02]} 62. g8=Q+ {[%clk 0:00:04]}  Ke5 {[%clk 0:00:03]} 63. Qe6+ {[%clk 0:00:04]}  Kf4 {[%clk 0:00:04]} 64. Qf6+ {[%clk 0:00:04]}  Ke4 {[%clk 0:00:02]} 65. Qxh4+ {[%clk 0:00:05]}  Kf3 {[%clk 0:00:03]} 66. Rg3+ {[%clk 0:00:06]}  Kf2 {[%clk 0:00:03]} 67. Qh2+ {[%clk 0:00:06]}  Kf1 {[%clk 0:00:04]} 68. Rg1# {[%clk 0:00:07]} 1-0


[Site "https://www.chess.com"]

[Event "Titled Tuesday Blitz June 21 Late 2022"]
[White "Yuan, Qingyu"]
[Black "Mickiewicz, Piotr"]
[WhiteFideId "8609772"]
[BlackFideId "1114891"]
[WhiteElo "2359"]
[BlackElo "2209"]
[Result "1-0"]
[Round "02"]
[TimeControl "180+1"]
[Date "2022.06.22"]
[WhiteClock "0:00:15"]
[BlackClock "0:00:28"]

1. e4 {[%clk 0:03:00]}  c5 {[%clk 0:02:58]} 2. Nf3 {[%clk 0:03:01]}  e6 {[%clk 0:02:59]} 3. b3 {[%clk 0:03:01]}  Nc6 {[%clk 0:02:58]} 4. Bb2 {[%clk 0:03:00]}  a6 {[%clk 0:02:57]} 5. c4 {[%clk 0:03:00]}  d6 {[%clk 0:02:56]} 6. d4 {[%clk 0:02:56]}  cxd4 {[%clk 0:02:55]} 7. Nxd4 {[%clk 0:02:57]}  Nf6 {[%clk 0:02:54]} 8. Bd3 {[%clk 0:02:48]}  Be7 {[%clk 0:02:43]} 9. O-O {[%clk 0:02:48]}  O-O {[%clk 0:02:43]} 10. Nxc6 {[%clk 0:02:48]}  bxc6 {[%clk 0:02:42]} 11. e5 {[%clk 0:02:49]}  dxe5 {[%clk 0:02:41]} 12. Bxe5 {[%clk 0:02:50]}  Nd7 {[%clk 0:02:39]} 13. Bb2 {[%clk 0:02:41]}  Bf6 {[%clk 0:02:38]} 14. Nc3 {[%clk 0:02:29]}  c5 {[%clk 0:02:29]} 15. Qc2 {[%clk 0:02:13]}  h6 {[%clk 0:02:24]} 16. Be4 {[%clk 0:02:09]}  Rb8 {[%clk 0:02:23]} 17. Rad1 {[%clk 0:02:09]}  Qc7 {[%clk 0:02:19]} 18. Na4 {[%clk 0:02:00]}  Bxb2 {[%clk 0:01:45]} 19. Qxb2 {[%clk 0:01:58]}  Nf6 {[%clk 0:01:44]} 20. Bf3 {[%clk 0:01:49]}  Bd7 {[%clk 0:01:41]} 21. Nc3 {[%clk 0:01:46]}  Bc6 {[%clk 0:01:40]} 22. Bxc6 {[%clk 0:01:43]}  Qxc6 {[%clk 0:01:40]} 23. Rd3 {[%clk 0:01:43]}  Rfd8 {[%clk 0:01:38]} 24. Rfd1 {[%clk 0:01:43]}  Rxd3 {[%clk 0:01:05]} 25. Rxd3 {[%clk 0:01:44]}  Rb7 {[%clk 0:00:59]} 26. h3 {[%clk 0:01:01]}  Rd7 {[%clk 0:00:58]} 27. Qd2 {[%clk 0:01:01]}  Rxd3 {[%clk 0:00:56]} 28. Qxd3 {[%clk 0:01:01]}  Qd7 {[%clk 0:00:57]} 29. Qxd7 {[%clk 0:00:34]}  Nxd7 {[%clk 0:00:57]} 30. Kf1 {[%clk 0:00:34]}  Kf8 {[%clk 0:00:57]} 31. Ke2 {[%clk 0:00:35]}  Ke7 {[%clk 0:00:58]} 32. Ke3 {[%clk 0:00:34]}  f5 {[%clk 0:00:58]} 33. a3 {[%clk 0:00:32]}  g5 {[%clk 0:00:57]} 34. b4 {[%clk 0:00:30]}  Kd6 {[%clk 0:00:56]} 35. f4 {[%clk 0:00:25]}  Nb6 {[%clk 0:00:41]} 36. fxg5 {[%clk 0:00:15]}  Nxc4+ {[%clk 0:00:38]} 37. Kf4 {[%clk 0:00:15]}  hxg5+ {[%clk 0:00:37]} 38. Kxg5 {[%clk 0:00:15]}  Nxa3 {[%clk 0:00:38]} 39. bxc5+ {[%clk 0:00:15]}  Kxc5 {[%clk 0:00:38]} 40. h4 {[%clk 0:00:15]}  Kc4 {[%clk 0:00:32]} 41. h5 {[%clk 0:00:15]}  Kxc3 {[%clk 0:00:27]} 42. h6 {[%clk 0:00:15]}  Nc4 {[%clk 0:00:28]} 43. h7 {[%clk 0:00:15]} 1-0


[Site "https://www.chess.com"]

[Event "Titled Tuesday Blitz June 21 Late 2022"]
[White "Zanette, Edgard Vinicius"]
[Black "Mikhailov, Viacheslav"]
[WhiteFideId "2109263"]
[BlackFideId "4187369"]
[WhiteElo "2182"]
[BlackElo "2381"]
[Result "0-1"]
[Round "02"]
[TimeControl "180+1"]
[Date "2022.06.22"]
[WhiteClock "0:00:22"]
[BlackClock "0:01:26"]

1. e4 {[%clk 0:03:00]}  d6 {[%clk 0:02:59]} 2. d4 {[%clk 0:02:58]}  Nf6 {[%clk 0:03:00]} 3. Nc3 {[%clk 0:02:58]}  g6 {[%clk 0:03:00]} 4. f3 {[%clk 0:02:56]}  Bg7 {[%clk 0:03:01]} 5. Be3 {[%clk 0:02:56]}  O-O {[%clk 0:03:01]} 6. Qd2 {[%clk 0:02:56]}  e5 {[%clk 0:03:02]} 7. Nge2 {[%clk 0:02:53]}  exd4 {[%clk 0:03:01]} 8. Nxd4 {[%clk 0:02:53]}  Nc6 {[%clk 0:03:02]} 9. O-O-O {[%clk 0:02:53]}  a6 {[%clk 0:03:00]} 10. h4 {[%clk 0:02:50]}  Nxd4 {[%clk 0:03:00]} 11. Bxd4 {[%clk 0:02:50]}  b5 {[%clk 0:03:01]} 12. Nd5 {[%clk 0:02:44]}  Be6 {[%clk 0:02:53]} 13. Nxf6+ {[%clk 0:02:31]}  Bxf6 {[%clk 0:02:54]} 14. h5 {[%clk 0:02:21]}  c5 {[%clk 0:02:33]} 15. Bxf6 {[%clk 0:02:20]}  Qxf6 {[%clk 0:02:34]} 16. Kb1 {[%clk 0:02:11]}  Rad8 {[%clk 0:02:33]} 17. Be2 {[%clk 0:01:58]}  d5 {[%clk 0:02:32]} 18. hxg6 {[%clk 0:01:45]}  fxg6 {[%clk 0:02:23]} 19. Qh6 {[%clk 0:01:41]}  Qg7 {[%clk 0:02:23]} 20. exd5 {[%clk 0:01:35]}  Qxh6 {[%clk 0:02:22]} 21. Rxh6 {[%clk 0:01:34]}  Bxd5 {[%clk 0:02:23]} 22. a3 {[%clk 0:01:02]}  Kg7 {[%clk 0:02:22]} 23. Rhh1 {[%clk 0:01:01]}  Rfe8 {[%clk 0:02:21]} 24. Rhe1 {[%clk 0:01:01]}  h5 {[%clk 0:02:15]} 25. Kc1 {[%clk 0:01:01]}  h4 {[%clk 0:02:12]} 26. Bf1 {[%clk 0:00:58]}  Bf7 {[%clk 0:02:03]} 27. Rxe8 {[%clk 0:00:56]}  Rxe8 {[%clk 0:02:03]} 28. Kd2 {[%clk 0:00:56]}  Rd8+ {[%clk 0:02:02]} 29. Ke1 {[%clk 0:00:54]}  Rxd1+ {[%clk 0:02:03]} 30. Kxd1 {[%clk 0:00:55]}  Kf6 {[%clk 0:02:04]} 31. Kd2 {[%clk 0:00:54]}  Ke5 {[%clk 0:02:04]} 32. Ke3 {[%clk 0:00:54]}  g5 {[%clk 0:02:04]} 33. Bd3 {[%clk 0:00:53]}  Bd5 {[%clk 0:02:01]} 34. c3 {[%clk 0:00:50]}  g4 {[%clk 0:01:52]} 35. Be2 {[%clk 0:00:42]}  g3 {[%clk 0:01:26]} 36. f4+ {[%clk 0:00:37]}  Kf5 {[%clk 0:01:26]} 37. Bf3 {[%clk 0:00:27]}  Bxf3 {[%clk 0:01:26]} 38. Kxf3 {[%clk 0:00:26]}  c4 {[%clk 0:01:26]} 39. Ke3 {[%clk 0:00:25]}  Kg4 {[%clk 0:01:23]} 40. Ke4 {[%clk 0:00:24]}  h3 {[%clk 0:01:23]} 41. gxh3+ {[%clk 0:00:23]}  Kxh3 {[%clk 0:01:24]} 42. f5 {[%clk 0:00:24]}  g2 {[%clk 0:01:25]} 43. f6 {[%clk 0:00:22]}  g1=Q {[%clk 0:01:26]} 0-1


[Site "https://www.chess.com"]

[Event "Titled Tuesday Blitz June 21 Late 2022"]
[White "Zhu, Jiner"]
[Black "Jobava, Baadur"]
[WhiteFideId "8608059"]
[BlackFideId "13601520"]
[WhiteElo "2281"]
[BlackElo "2617"]
[Result "0-1"]
[Round "02"]
[TimeControl "180+1"]
[Date "2022.06.21"]
[WhiteClock "0:00:23"]
[BlackClock "0:01:57"]

1. e4 {[%clk 0:03:00]}  e6 {[%clk 0:02:56]} 2. d4 {[%clk 0:03:00]}  d5 {[%clk 0:02:57]} 3. Nc3 {[%clk 0:03:00]}  dxe4 {[%clk 0:02:57]} 4. Nxe4 {[%clk 0:03:00]}  Bd7 {[%clk 0:02:58]} 5. Nf3 {[%clk 0:03:00]}  Bc6 {[%clk 0:02:59]} 6. Bd3 {[%clk 0:02:58]}  Nd7 {[%clk 0:03:00]} 7. O-O {[%clk 0:02:58]}  Ngf6 {[%clk 0:03:00]} 8. Ned2 {[%clk 0:02:57]}  g6 {[%clk 0:02:56]} 9. Nc4 {[%clk 0:02:54]}  Bg7 {[%clk 0:02:57]} 10. Nce5 {[%clk 0:02:48]}  O-O {[%clk 0:02:57]} 11. Nxc6 {[%clk 0:02:47]}  bxc6 {[%clk 0:02:58]} 12. Re1 {[%clk 0:02:42]}  c5 {[%clk 0:02:58]} 13. c3 {[%clk 0:02:39]}  Rb8 {[%clk 0:02:58]} 14. Qe2 {[%clk 0:02:38]}  Qe7 {[%clk 0:02:56]} 15. Bg5 {[%clk 0:02:14]}  h6 {[%clk 0:02:56]} 16. Bh4 {[%clk 0:02:11]}  Qd6 {[%clk 0:02:50]} 17. Ne5 {[%clk 0:02:05]}  cxd4 {[%clk 0:02:48]} 18. Rad1 {[%clk 0:01:54]}  Qxe5 {[%clk 0:02:46]} 19. Qxe5 {[%clk 0:01:54]}  Nxe5 {[%clk 0:02:47]} 20. Rxe5 {[%clk 0:01:55]}  Nd5 {[%clk 0:02:46]} 21. Ree1 {[%clk 0:01:45]}  dxc3 {[%clk 0:02:47]} 22. bxc3 {[%clk 0:01:45]}  Nxc3 {[%clk 0:02:48]} 23. Rd2 {[%clk 0:01:45]}  Nd5 {[%clk 0:02:46]} 24. Rc1 {[%clk 0:01:38]}  h5 {[%clk 0:02:46]} 25. Rdd1 {[%clk 0:01:25]}  Be5 {[%clk 0:02:38]} 26. Be4 {[%clk 0:01:20]}  Nc3 {[%clk 0:02:37]} 27. Re1 {[%clk 0:01:20]}  Nxe4 {[%clk 0:02:36]} 28. Rxe4 {[%clk 0:01:21]}  Bd6 {[%clk 0:02:36]} 29. Bf6 {[%clk 0:01:20]}  Rb5 {[%clk 0:02:36]} 30. h3 {[%clk 0:01:09]}  Rfb8 {[%clk 0:02:36]} 31. g4 {[%clk 0:01:07]}  hxg4 {[%clk 0:02:30]} 32. hxg4 {[%clk 0:01:08]}  Rb4 {[%clk 0:02:29]} 33. Rxb4 {[%clk 0:01:01]}  Rxb4 {[%clk 0:02:30]} 34. g5 {[%clk 0:01:01]}  Kf8 {[%clk 0:02:28]} 35. Kg2 {[%clk 0:00:55]}  Ke8 {[%clk 0:02:28]} 36. Rh1 {[%clk 0:00:55]}  e5 {[%clk 0:02:23]} 37. Re1 {[%clk 0:00:43]}  Kd7 {[%clk 0:02:22]} 38. Bxe5 {[%clk 0:00:42]}  Rg4+ {[%clk 0:02:22]} 39. Kf3 {[%clk 0:00:41]}  Rxg5 {[%clk 0:02:23]} 40. Bd4 {[%clk 0:00:40]}  Ra5 {[%clk 0:02:23]} 41. Re2 {[%clk 0:00:40]}  Ra3+ {[%clk 0:02:22]} 42. Kg2 {[%clk 0:00:39]}  c5 {[%clk 0:02:23]} 43. Be3 {[%clk 0:00:39]}  c4 {[%clk 0:02:23]} 44. Rc2 {[%clk 0:00:37]}  a5 {[%clk 0:02:20]} 45. Kf3 {[%clk 0:00:36]}  Bb4 {[%clk 0:02:18]} 46. Ke4 {[%clk 0:00:35]}  Ke6 {[%clk 0:02:16]} 47. Kd4 {[%clk 0:00:32]}  c3 {[%clk 0:02:13]} 48. Kc4 {[%clk 0:00:31]}  Bd6 {[%clk 0:02:05]} 49. Kb5 {[%clk 0:00:29]}  Kd5 {[%clk 0:01:58]} 50. Bb6 {[%clk 0:00:26]}  Ke4 {[%clk 0:01:56]} 51. Be3 {[%clk 0:00:26]}  Kd3 {[%clk 0:01:56]} 52. Rc1 {[%clk 0:00:23]}  c2 {[%clk 0:01:57]} 0-1


[Site "https://www.chess.com"]